fUSD/lending_fUSD_20250515
["ID","MTS","AMOUNT","RATE_DAILY","PERIOD"]
[361197895,1747335031692,-21033.21663214,0.00011647,2]
[361197896,1747335031702,-150.0,0.00011768,2]
[361197897,1747335031711,-972.03,0.00011883,2]
[361197898,1747335031720,-110755.88177803,0.00012,2]
[361197899,1747335031730,-1000.0,0.0001217,2]
[361197900,1747335031739,-162.61,0.00012173,2]
[361197901,1747335031749,-250.0,0.00012173,2]
[361197902,1747335031758,-1419.26,0.00012322,2]
[361197903,1747335031767,-200.0,0.00012334,2]
[361197904,1747335031777,-490.26987882,0.00012375,2]
[361197905,1747335031786,-95127.71657991,0.000124,2]
[361197906,1747335031797,-458.06,0.00012494,2]
[361197907,1747335031806,-11980.95645913,0.00012566,2]
[361197908,1747335031818,-21418.44276861,0.00012566,2]
[361197909,1747335031828,-3293.31676304,0.00012681,2]
[361197910,1747335031837,-207.4,0.00012683,2]
[361197911,1747335031846,-1000.0,0.0001269,2]
[361197912,1747335031855,-3256.774,0.0001269,2]
[361197913,1747335031864,-188.517,0.0001269,2]
[361197914,1747335031873,-29285.82584041,0.00012691,2]
[361197915,1747335031896,-1063.44509394,0.00012691,2]
[361198445,1747335037507,-2025.98478157,0.00012691,2]
[361198461,1747335037660,-1428.37905058,0.00012691,2]
[361198463,1747335037671,-1138.66621302,0.00012691,2]
[361198466,1747335037683,-54439.29042048,0.00012691,2]
[361198468,1747335037692,-666.99052396,0.0001275,2]
[361198470,1747335037702,-2500.0,0.00012793,2]
[361198472,1747335037711,-500.0,0.00012795,2]
[361198474,1747335037721,-157.17042069,0.000128,2]
[361198476,1747335037730,-1671.0,0.00012811,2]
[361198478,1747335037740,-490.26987876,0.00012846,2]
[361198480,1747335037749,-3977.95,0.00012893,2]
[361198482,1747335037759,-18377.53,0.00012893,2]
[361198484,1747335037768,-151.0,0.00012896,2]
[361198486,1747335037778,-151.0,0.00012896,2]
[361198488,1747335037788,-153.446622,0.000129,2]
[361198490,1747335037799,-151.435094,0.000129,2]
[361198492,1747335037808,-313.464976,0.000129,2]
[361198494,1747335037817,-1157.4081,0.000129,2]
[361198496,1747335037826,-46072.05268199,0.000129,2]
[361198498,1747335037835,-215.80726176,0.000129,2]
[361198500,1747335037844,-1034.45539792,0.000129,2]
[361198503,1747335037866,-1025.3,0.000129,2]
[361198505,1747335037877,-1313.34246396,0.000129,2]
[361198507,1747335037888,-709.08266212,0.000129,2]
[361198510,1747335037906,-676.66123084,0.000129,2]
[361198512,1747335037915,-493.88924202,0.000129,2]
[361198514,1747335037925,-151.0,0.00012985,2]
[361198517,1747335037934,-200.0,0.00012985,2]
[361198520,1747335037943,-668.65185757,0.00012985,2]
[361198522,1747335037953,-433.03746191,0.0001299,2]
[361198524,1747335037962,-433.03746191,0.0001299,2]
[361198526,1747335037972,-151.0,0.00012991,2]
[361198528,1747335037981,-151.854655,0.00012991,2]
[361198530,1747335037991,-151.0,0.00012991,2]
[361198532,1747335038001,-300.0,0.00012999,2]
[361198534,1747335038011,-300.0,0.00012999,2]
[361198536,1747335038021,-150.0,0.00012999,2]
[361198538,1747335038030,-150.0,0.00012999,2]
[361198540,1747335038040,-150.0,0.00012999,2]
[361198542,1747335038052,-150.0,0.00012999,2]
[361198544,1747335038062,-150.0,0.00012999,2]
[361198546,1747335038071,-182.10517332,0.00012999,2]
[361198548,1747335038082,-587.0,0.00012999,2]
[361198550,1747335038092,-982.51285823,0.00013,2]
[361198749,1747335039662,-1000.0,0.000123,2]
[361198752,1747335039672,-650.05512954,0.00013,2]
[361198755,1747335039683,-4316.23010528,0.00013,2]
[361198759,1747335039694,-606.05829084,0.00013,2]
[361198762,1747335039706,-31159.780091,0.00013,2]
[361198765,1747335039717,-251119.70774217,0.00013,2]
[361198769,1747335039728,-5932.81606621,0.00013,2]
[361198772,1747335039740,-6167.3096582,0.00013,2]
[361198775,1747335039751,-3832.6903418,0.00013,2]
[361198778,1747335039762,-1000.0,0.00013,2]
[361198781,1747335039773,-5020.83828484,0.00013,2]
[361198785,1747335039784,-42908.35883907,0.00013,2]
[361198788,1747335039795,-1781.137005,0.00013,2]
[361198815,1747335040110,-1363.68834929,0.00013,2]
[361198818,1747335040126,-4592.27815191,0.00013,2]
[361198820,1747335040138,-1814.74099537,0.00013,2]
[361198822,1747335040149,-8456.29292692,0.00013,2]
[361198825,1747335040167,-500.0,0.00013,2]
[361198827,1747335040179,-451.9737682,0.00013,2]
[361198857,1747335040433,-16201.78172416,0.00013,2]
[361198859,1747335040446,-9578.8693,0.00013,2]
[361198863,1747335040476,-103864.44607995,0.00013,2]
[361198866,1747335040493,-1950.0,0.00013,2]
[361198870,1747335040520,-108186.74986707,0.00013,2]
[361199141,1747335042905,-20641.52586691,0.00013,2]
[361199144,1747335042916,-3050.4888,0.00013,2]
[361199156,1747335043013,-1761.37212073,0.00013,2]
[361199162,1747335043067,-3401.59999991,0.00013,2]
[361199175,1747335043174,-3743.82174336,0.00013,2]
[361199184,1747335043258,-10752.9678174,0.00013,2]
[361199187,1747335043269,-798.75001,0.00013,2]
[361199189,1747335043280,-393.8979766,0.00013,2]
[361199438,1747335045600,-833.15999988,0.00012375,2]
[361199440,1747335045612,-1666.84000012,0.00012375,2]
[361199442,1747335045622,-3562.59799988,0.00013,2]
[361199446,1747335045653,-1644.22816153,0.00013,2]
[361199448,1747335045665,-904.44999998,0.00013,2]
[361199454,1747335045710,-571.41973568,0.00013,2]
[361199456,1747335045722,-21245.87739771,0.00013,2]
[361199461,1747335045766,-534212.32100916,0.00013,2]
[361199463,1747335045775,-348839.88341853,0.00013,2]
[361199466,1747335045787,-98237.8046804,0.00013,2]
[361199468,1747335045798,-296349.38838396,0.00013,2]
[361199470,1747335045812,-980.2890193,0.00013,2]
[361199472,1747335045824,-2016.45571008,0.00013,2]
[361199474,1747335045835,-6527.0,0.00013,2]
[361199477,1747335045847,-608.99999374,0.00013,2]
[361199479,1747335045858,-103309.99999999,0.00013,2]
[361199482,1747335045877,-30960.0,0.00013,2]
[361199494,1747335045985,-1617.996,0.00013,2]
[361199505,1747335046093,-894.2930488,0.00013,2]
[361199508,1747335046105,-3303.64415074,0.00013,2]
[361199513,1747335046148,-1563.17,0.00013,2]
[361199515,1747335046160,-1144.90002,0.00013,2]
[361200073,1747335122048,400.0,0.00023287,30]
[361200074,1747335201375,170.09,9.822e-05,2]
[361200075,1747335348374,-450.0,0.0001,2]
[361200076,1747335659092,151.0,0.0002,10]
[361200077,1747335723745,150.0,0.0001189,7]
[361200078,1747335846080,1392.56,9.875e-05,2]
[361200178,1747336076833,209.71,0.00021945,30]
[361200184,1747336231685,-415.03,0.00011634,2]
[361200185,1747336231694,-194.85347487,0.00011655,2]
[361200186,1747336231705,-5.14652513,0.00011655,2]
[361200187,1747336231714,-344.85347487,0.00011681,2]
[361200188,1747336231791,-141.15652513,0.00011681,2]
[361200189,1747336231801,-250.0,0.00011763,2]
[361200190,1747336231811,-92.41089455,0.00011792,2]
[361200191,1747336232421,-261.62682,0.00011575,2]
[361200192,1747336232430,-207.58910545,0.00011792,2]
[361200193,1747336232440,-251.41579612,0.00011792,2]
[361200194,1747336232453,-948.58420388,0.00011792,2]
[361200195,1747336232462,-300.0,0.00011792,2]
[361200196,1747336232471,-1828.00298349,0.00011793,2]
[361200197,1747336232484,-6097.15198333,0.00011793,2]
[361200198,1747336232497,-762.17542217,0.00011793,2]
[361200199,1747336232515,-627.68208494,0.00011793,2]
[361200201,1747336232537,-800.0,0.00011793,2]
[361200210,1747336237823,-1711.199059,0.00011793,2]
[361200211,1747336237835,-12073.78846707,0.00011793,2]
[361200212,1747336237845,-554.34,0.00011793,2]
[361200213,1747336237859,-393.55,0.00011942,2]
[361200214,1747336237869,-500.0,0.00012,2]
[361200215,1747336237878,-1000.0,0.00012005,2]
[361200216,1747336237888,-1144.11,0.00012059,2]
[361200217,1747336237897,-162.85,0.00012072,2]
[361200218,1747336237907,-200.0,0.00012089,2]
[361200219,1747336237916,-1392.56,0.00012138,2]
[361200220,1747336237925,-250.0,0.00012178,2]
[361200221,1747336237935,-200.0,0.00012197,2]
[361200222,1747336237945,-246.47,0.00012208,2]
[361200224,1747336237954,-207.4,0.00012296,2]
[361200225,1747336237964,-150.0,0.00012299,2]
[361200226,1747336237973,-11158.0119,0.000123,2]
[361200227,1747336237983,-682.7713,0.000123,2]
[361200228,1747336237992,-500.0,0.00012575,2]
[361200229,1747336238001,-2605.419,0.0001259,2]
[361200231,1747336238011,-188.517,0.0001259,2]
[361200233,1747336238020,-19592.3828,0.00012591,2]
[361200235,1747336238029,-163.92,0.00012646,2]
[361200237,1747336238038,-1000.0,0.000127,2]
[361200239,1747336238047,-1000.0,0.000127,2]
[361200241,1747336238057,-1527.0,0.000127,2]
[361200243,1747336238066,-225.0,0.0001274,2]
[361200245,1747336238075,-151.0,0.00012892,2]
[361200246,1747336238084,-200.0,0.00012892,2]
[361200249,1747336238094,-155.0,0.00012892,2]
[361200252,1747336238105,-151.0,0.00012892,2]
[361200254,1747336238115,-719.52358209,0.00012892,2]
[361200255,1747336238123,-668.65185757,0.00012892,2]
[361200257,1747336238133,-289.12271624,0.000129,2]
[361200259,1747336238142,-41464.8474138,0.000129,2]
[361200261,1747336238152,-172.38261317,0.000129,2]
[361200263,1747336238161,-392.21590308,0.000129,2]
[361200265,1747336238171,-4798.51484782,0.000129,2]
[361200267,1747336238180,-1000.0,0.000129,2]
[361200269,1747336238190,-2500.0,0.000129,2]
[361200271,1747336238199,-446.76574588,0.000129,2]
[361200273,1747336238208,-250.0,0.00012906,2]
[361200275,1747336238218,-2522.908754,0.00012934,2]
[361200277,1747336238227,-420.0,0.00012948,2]
[361200279,1747336238237,-1200.0,0.00012971,2]
[361200281,1747336238246,-500.69101784,0.00012973,2]
[361200283,1747336238255,-500.0,0.00012973,2]
[361200285,1747336238264,-500.0,0.00012973,2]
[361200287,1747336238274,-167.91818696,0.00012973,2]
[361200289,1747336238283,-500.0,0.00012973,2]
[361200291,1747336238292,-500.0,0.00012973,2]
[361200293,1747336238302,-500.0,0.00012973,2]
[361200295,1747336238311,-500.0,0.00012973,2]
[361200297,1747336238321,-852.54,0.00012979,2]
[361200299,1747336238330,-258.42790357,0.0001299,2]
[361200301,1747336238340,-235.53790447,0.00012999,2]
[361200303,1747336238349,-464.1332898,0.00012999,2]
[361200305,1747336238361,-500.0,0.00012999,2]
[361200307,1747336238371,-230.65768411,0.00012999,2]
[361200309,1747336238380,-500.0,0.00012999,2]
[361200311,1747336238390,-500.0,0.00012999,2]
[361200313,1747336238399,-500.0,0.00012999,2]
[361200315,1747336238408,-500.0,0.00012999,2]
[361200317,1747336238417,-500.0,0.00012999,2]
[361200319,1747336238426,-500.0,0.00012999,2]
[361200321,1747336238435,-500.0,0.00012999,2]
[361200345,1747336238655,-500.0,0.00012999,2]
[361200347,1747336238666,-500.0,0.00012999,2]
[361200349,1747336238675,-500.0,0.00012999,2]
[361200351,1747336238685,-500.0,0.00012999,2]
[361200353,1747336238694,-500.0,0.00012999,2]
[361200354,1747336238704,-500.0,0.00012999,2]
[361200355,1747336238713,-500.0,0.00012999,2]
[361200356,1747336238722,-500.0,0.00012999,2]
[361200357,1747336238733,-500.0,0.00012999,2]
[361200358,1747336238744,-500.0,0.00012999,2]
[361200359,1747336238754,-500.0,0.00012999,2]
[361200360,1747336238763,-500.0,0.00012999,2]
[361200361,1747336238772,-500.0,0.00012999,2]
[361200362,1747336238783,-500.0,0.00012999,2]
[361200363,1747336238792,-500.0,0.00012999,2]
[361200364,1747336238801,-500.0,0.00012999,2]
[361200365,1747336238810,-500.0,0.00012999,2]
[361200366,1747336238820,-500.0,0.00012999,2]
[361200367,1747336238830,-500.0,0.00012999,2]
[361200368,1747336238839,-500.0,0.00012999,2]
[361200369,1747336238848,-500.0,0.00012999,2]
[361200370,1747336238861,-500.0,0.00012999,2]
[361200371,1747336238871,-500.0,0.00012999,2]
[361200372,1747336238881,-500.0,0.00012999,2]
[361200373,1747336238890,-500.0,0.00012999,2]
[361200374,1747336238899,-500.0,0.00012999,2]
[361200375,1747336238909,-500.0,0.00012999,2]
[361200376,1747336238918,-500.0,0.00012999,2]
[361200377,1747336238927,-500.0,0.00012999,2]
[361200378,1747336239164,-500.0,0.00012999,2]
[361200379,1747336239174,-500.0,0.00012999,2]
[361200380,1747336239184,-500.0,0.00012999,2]
[361200381,1747336239193,-500.0,0.00012999,2]
[361200382,1747336239202,-500.0,0.00012999,2]
[361200383,1747336239212,-500.0,0.00012999,2]
[361200384,1747336239221,-153.18176955,0.00012999,2]
[361200385,1747336239230,-500.0,0.00012999,2]
[361200386,1747336239240,-500.0,0.00012999,2]
[361200387,1747336239249,-500.0,0.00012999,2]
[361200388,1747336239258,-500.0,0.00012999,2]
[361200389,1747336239267,-500.0,0.00012999,2]
[361200390,1747336239277,-500.0,0.00012999,2]
[361200391,1747336239287,-500.0,0.00012999,2]
[361200392,1747336239296,-500.0,0.00012999,2]
[361200393,1747336239305,-500.0,0.00012999,2]
[361200394,1747336239315,-500.0,0.00012999,2]
[361200395,1747336239324,-500.0,0.00012999,2]
[361200396,1747336239334,-500.0,0.00012999,2]
[361200397,1747336239343,-500.0,0.00012999,2]
[361200398,1747336239355,-500.0,0.00012999,2]
[361200399,1747336239366,-500.0,0.00012999,2]
[361200400,1747336239376,-500.0,0.00012999,2]
[361200401,1747336239385,-500.0,0.00012999,2]
[361200402,1747336239395,-500.0,0.00012999,2]
[361200403,1747336239404,-500.0,0.00012999,2]
[361200404,1747336239413,-500.0,0.00012999,2]
[361200405,1747336239423,-500.0,0.00012999,2]
[361200406,1747336239433,-500.0,0.00012999,2]
[361200407,1747336239443,-500.0,0.00012999,2]
[361200408,1747336239453,-500.0,0.00012999,2]
[361200409,1747336239465,-500.0,0.00012999,2]
[361200410,1747336239474,-500.0,0.00012999,2]
[361200411,1747336239485,-500.0,0.00012999,2]
[361200412,1747336239494,-500.0,0.00012999,2]
[361200413,1747336239503,-500.0,0.00012999,2]
[361200414,1747336239512,-500.0,0.00012999,2]
[361200415,1747336239521,-500.0,0.00012999,2]
[361200417,1747336239530,-500.0,0.00012999,2]
[361200419,1747336239540,-500.0,0.00012999,2]
[361200421,1747336239549,-500.0,0.00012999,2]
[361200422,1747336239558,-500.0,0.00012999,2]
[361200423,1747336239567,-500.0,0.00012999,2]
[361200424,1747336239577,-500.0,0.00012999,2]
[361200425,1747336239585,-482.93039702,0.00012999,2]
[361200426,1747336239592,-500.0,0.00012999,2]
[361200427,1747336239600,-500.0,0.00012999,2]
[361200428,1747336239612,-500.0,0.00012999,2]
[361200429,1747336239620,-500.0,0.00012999,2]
[361200430,1747336239627,-500.0,0.00012999,2]
[361200431,1747336239636,-500.0,0.00012999,2]
[361200432,1747336239646,-500.0,0.00012999,2]
[361200433,1747336239655,-500.0,0.00012999,2]
[361200434,1747336239664,-300.0,0.00012999,2]
[361200435,1747336239674,-150.0,0.00012999,2]
[361200436,1747336239683,-637.0,0.00013,2]
[361200437,1747336239694,-232396.01863547,0.00013,2]
[361200438,1747336239703,-364253.76559866,0.00013,2]
[361200439,1747336240100,-4032.71134052,0.00013,2]
[361200440,1747336240114,-286735.83956718,0.00013,2]
[361200441,1747336240125,-2228.90697519,0.00013,2]
[361200442,1747336240136,-17335.38929171,0.00013,2]
[361200443,1747336240147,-1010.01267846,0.00013,2]
[361200444,1747336240158,-1000.0,0.00013,2]
[361200445,1747336240179,-2930.51446343,0.00013,2]
[361200446,1747336240190,-1394.82059722,0.00013,2]
[361200447,1747336240220,-17587.0727439,0.00013,2]
[361200448,1747336240240,-30960.55143175,0.00013,2]
[361200452,1747336242877,-565.0,0.00013,2]
[361200453,1747336242886,-3431.99999943,0.00013,2]
[361200454,1747336242897,-247928.82765715,0.00013,2]
[361200455,1747336242907,-151.0,0.00013,2]
[361200456,1747336242917,-151.0,0.00013,2]
[361200457,1747336242926,-151.0,0.00013,2]
[361200458,1747336242935,-151.0,0.00013,2]
[361200459,1747336242944,-3407.9929033,0.00013019,2]
[361200460,1747336242953,-7662.4651837,0.00013019,2]
[361200461,1747336242962,-58295.82410107,0.00013037,2]
[361200462,1747336242974,-620.0,0.00013037,2]
[361200463,1747336242985,-410.52277386,0.00013037,2]
[361200464,1747336242997,-4416.43072351,0.00013037,2]
[361200465,1747336243008,-67406.43734496,0.00013037,2]
[361200466,1747336243018,-151.0,0.00013064,2]
[361200467,1747336243027,-250.0,0.0001307,2]
[361200468,1747336243037,-200.0,0.000132,2]
[361200469,1747336243046,-1760.0,0.000132,2]
[361200470,1747336243056,-554.34,0.00013267,2]
[361200471,1747336243065,-353.92,0.00013349,2]
[361200472,1747336243076,-913.24,0.00013349,2]
[361200473,1747336243085,-162.65,0.00013349,2]
[361200474,1747336243095,-150.0,0.00013394,2]
[361200475,1747336243104,-392.215903,0.00013404,2]
[361200476,1747336243119,-41464.84741372,0.00013434,2]
[361200477,1747336243128,-207.4,0.0001344,2]
[361200478,1747336243137,-214.37073772,0.0001344,2]
[361200479,1747336243146,-693.3919763,0.0001344,2]
[361200480,1747336243155,-194.65874869,0.000135,2]
[361200481,1747336243164,-751.56507605,0.00013501,2]
[361200482,1747336243174,-1000.0,0.00013505,2]
[361200483,1747336243183,-162.85,0.00013581,2]
[361200484,1747336243193,-215.0738,0.00013665,2]
[361200485,1747336243202,-529.27,0.00013698,2]
[361200486,1747336243212,-1000.0,0.00013699,2]
[361200487,1747336243221,-200.0,0.00013699,2]
[361200488,1747336243231,-171.45,0.00013699,2]
[361200489,1747336243240,-267.28532239,0.00013699,2]
[361200490,1747336243250,-500.0,0.00013699,2]
[361200491,1747336243259,-259.75717948,0.00013699,2]
[361200492,1747336243267,-631.03270597,0.00013699,2]
[361200493,1747336243276,-2570.9,0.000137,2]
[361200494,1747336243285,-2570.9,0.000137,2]
[361200495,1747336243294,-4798.51484778,0.00013831,2]
[361200496,1747336243304,-392.215903,0.00013908,2]
[361200497,1747336243313,-160.539,0.00013945,2]
[361200498,1747336243322,-6824.0,0.00013945,2]
[361200499,1747336243331,-4035.0,0.00013945,2]
[361200500,1747336243340,-650.786,0.00013945,2]
[361200501,1747336243349,-880.0,0.00013945,2]
[361200502,1747336243362,-803.75,0.00013952,2]
[361200503,1747336243373,-1054.63,0.00013952,2]
[361200504,1747336243383,-457.61,0.00013952,2]
[361200505,1747336243393,-456.0,0.00013952,2]
[361200506,1747336243403,-41464.84741372,0.00013968,2]
[361200507,1747336243412,-215.0738,0.00013988,2]
[361200508,1747336243423,-719.04747942,0.00013988,2]
[361200509,1747336243431,-550.0,0.00014,2]
[361200510,1747336243440,-172.38261312,0.00014174,2]
[361200511,1747336243450,-1075.0,0.00014212,2]
[361200512,1747336243459,-154.405,0.00014258,2]
[361200513,1747336243469,-928.0,0.00014258,2]
[361200514,1747336243479,-1303.0,0.00014258,2]
[361200515,1747336243489,-644.792,0.00014258,2]
[361200516,1747336243499,-816.0,0.00014258,2]
[361200517,1747336243509,-1457.0,0.00014258,2]
[361200518,1747336243518,-1252.0,0.00014258,2]
[361200519,1747336243528,-919.0,0.00014258,2]
[361200520,1747336243539,-584.0,0.00014258,2]
[361200521,1747336243549,-553.0,0.00014258,2]
[361200522,1747336243558,-151.0,0.00014258,2]
[361200523,1747336243568,-156.587,0.00014261,2]
[361200524,1747336243577,-446.76574583,0.00014386,2]
[361200525,1747336243587,-1392.56,0.00014402,2]
[361200526,1747336243596,-392.215903,0.00014411,2]
[361200527,1747336243606,-41464.84741372,0.00014503,2]
[361200528,1747336243618,-854.27,0.00014504,2]
[361200529,1747336243628,-223.0315306,0.00014536,2]
[361200530,1747336243638,-745.65223616,0.00014536,2]
[361200531,1747336243647,-852.54,0.00014602,2]
[361200532,1747336243656,-250.56719058,0.00014632,2]
[361200533,1747336243666,-554.34,0.00014741,2]
[361200534,1747336243676,-4798.51484778,0.00014762,2]
[361200535,1747336243685,-210.80279929,0.00014882,2]
[361200536,1747336243695,-392.215903,0.00014915,2]
[361200537,1747336243705,-300.41,0.00014947,2]
[361200538,1747336243714,-150.0,0.00014947,2]
[361200539,1747336243727,-1075.0,0.0001496,2]
[361200540,1747336243737,-5499.999999,0.00015,2]
[361200541,1747336243749,-1000.0,0.00015006,2]
[361200542,1747336243760,-151.66845524,0.00015018,7]
[361200543,1747336243769,-223.0315306,0.00015034,2]
[361200544,1747336243778,-22693.92336409,0.00015037,2]
[361200545,1747336243800,-18770.92404963,0.00015037,2]
[361200546,1747336243810,-529.27,0.00015068,2]
[361200547,1747336243819,-300.0,0.00015068,2]
[361200548,1747336243829,-231.28369723,0.00015084,2]
[361200549,1747336243839,-773.2413689,0.00015084,2]
[361200550,1747336243848,-162.85,0.0001509,2]
[361200551,1747336243860,-289.12271624,0.00015129,2]
[361200552,1747336243870,-151.0,0.00015281,2]
[361200553,1747336243880,-392.215903,0.00015419,2]
[361200554,1747336243890,-172.38261312,0.00015448,2]
[361200555,1747336243901,-41464.84741372,0.00015571,2]
[361200556,1747336243911,-296.413,0.0001563,2]
[361200557,1747336243921,-155.0,0.00015631,2]
[361200558,1747336243930,-239.84119403,0.00015632,2]
[361200559,1747336243940,-461.40646453,0.00015632,2]
[361200560,1747336243950,-4798.51484778,0.00015693,2]
[361200561,1747336243960,-1075.0,0.00015707,2]
[361200562,1747336243969,-210.80279929,0.00015872,2]
[361200563,1747336243978,-151.0,0.00015876,2]
[361200564,1747336243987,-1967.675835,0.0001589,2]
[361200565,1747336243997,-150.0,0.0001589,2]
[361200566,1747336244007,-392.215903,0.00015923,2]
[361200567,1747336244016,-151.0,0.00015931,2]
[361200568,1747336244025,-151.0,0.00015944,2]
[361200569,1747336244034,-151.0,0.00015944,2]
[361200570,1747336244044,-151.0,0.00015951,2]
[361200571,1747336244054,-438.85006606,0.00016,5]
[361200572,1747336244064,-600.0,0.00016,2]
[361200573,1747336244073,-41464.84741372,0.00016105,2]
[361200574,1747336244083,-6639.42,0.00016116,2]
[361200575,1747336244092,-248.71531821,0.0001618,2]
[361200576,1747336244102,-554.34,0.00016215,2]
[361200578,1747336244114,-852.54,0.00016224,2]
[361200580,1747336244123,-151.0,0.00016288,2]
[361200582,1747336244133,-151.0,0.00016288,2]
[361200584,1747336244142,-151.0,0.00016288,2]
[361200586,1747336244151,-151.0,0.00016288,2]
[361200588,1747336244162,-151.0,0.00016288,2]
[361200590,1747336244171,-151.0,0.00016288,2]
[361200592,1747336244181,-151.0,0.00016288,2]
[361200594,1747336244190,-151.0,0.00016288,2]
[361200596,1747336244199,-154.684887,0.00016288,2]
[361200598,1747336244208,-151.752127,0.00016288,2]
[361200600,1747336244218,-151.0,0.00016288,2]
[361200602,1747336244228,-151.0,0.00016288,2]
[361200603,1747336244237,-151.0,0.00016288,2]
[361200604,1747336244248,-151.0,0.00016288,2]
[361200605,1747336244257,-151.0,0.00016288,2]
[361200606,1747336244266,-151.0,0.00016288,2]
[361200607,1747336244276,-151.0,0.00016288,2]
[361200608,1747336244285,-151.0,0.00016288,2]
[361200609,1747336244295,-151.0,0.00016288,2]
[361200610,1747336244304,-151.0,0.000163,2]
[361200611,1747336244314,-151.0,0.000163,2]
[361200612,1747336244324,-151.0,0.000163,2]
[361200613,1747336244333,-151.0,0.000163,2]
[361200614,1747336244345,-151.0,0.000163,2]
[361200615,1747336244359,-151.0,0.000163,2]
[361200616,1747336244369,-151.0,0.000163,2]
[361200617,1747336244379,-486.01,0.00016354,2]
[361200618,1747336244388,-231.28369723,0.00016403,2]
[361200619,1747336244398,-392.215903,0.00016426,2]
[361200620,1747336244407,-150.0,0.00016437,2]
[361200621,1747336244417,-300.0,0.00016437,2]
[361200622,1747336244427,-300.0,0.00016437,2]
[361200623,1747336244437,-400.0,0.00016438,2]
[361200624,1747336244447,-400.0,0.00016438,2]
[361200625,1747336244456,-400.0,0.00016438,2]
[361200626,1747336244466,-151.0,0.00016438,2]
[361200627,1747336244475,-400.0,0.00016438,2]
[361200628,1747336244484,-400.0,0.00016438,2]
[361200629,1747336244494,-355.68318928,0.00016438,2]
[361200630,1747336244503,-151.0,0.00016438,2]
[361200631,1747336244513,-151.0,0.00016438,2]
[361200632,1747336244523,-400.0,0.00016438,2]
[361200633,1747336244531,-400.0,0.00016438,2]
[361200634,1747336244542,-251.381688,0.00016438,2]
[361200635,1747336244554,-400.0,0.00016438,2]
[361200636,1747336244565,-400.0,0.00016438,2]
[361200637,1747336244577,-400.0,0.00016438,2]
[361200638,1747336244593,-400.0,0.00016438,2]
[361200639,1747336244603,-400.0,0.00016438,2]
[361200640,1747336244614,-400.0,0.00016438,2]
[361200641,1747336244624,-400.0,0.00016438,2]
[361200642,1747336244633,-400.0,0.00016438,2]
[361200643,1747336244644,-400.0,0.00016438,2]
[361200644,1747336244653,-473.63293615,0.00016438,2]
[361200645,1747336244662,-400.0,0.00016438,2]
[361200646,1747336244672,-212.930367,0.00016438,2]
[361200647,1747336244682,-151.0,0.00016438,2]
[361200648,1747336244691,-400.0,0.00016438,2]
[361200649,1747336244700,-400.0,0.00016438,2]
[361200650,1747336244710,-400.0,0.00016438,2]
[361200651,1747336244719,-400.0,0.00016438,2]
[361200652,1747336244728,-400.0,0.00016438,2]
[361200653,1747336244739,-400.0,0.00016438,2]
[361200654,1747336244750,-400.0,0.00016438,2]
[361200655,1747336244759,-400.0,0.00016438,2]
[361200656,1747336244768,-400.0,0.00016438,2]
[361200657,1747336244778,-400.0,0.00016438,2]
[361200658,1747336244789,-151.0,0.00016438,2]
[361200659,1747336244799,-151.0,0.00016438,2]